bitfinex/quotes_ETHUSD_20250415
["timestamp","ask_amount","ask_price","bid_price","bid_amount"]
[1744737366190,13.06047,1625.6,1625.3,6.15248]
[1744737366507,6.15211,1625.5,1625.2,6.96575]
[1744737366709,13.06036,1625.6,1625.2,6.96575]
[1744737366897,13.06036,1625.6,1625.2,13.1187]
[1744737367092,6.90864,1625.6,1625.3,6.15249]
[1744737367294,0.8125,1625.8,1625.5,6.15167]
[1744737367510,10.0352662,1626.1,1625.6,6.15139]
[1744737367511,6.96283,1626.0,1625.6,6.15139]
[1744737367812,6.96283,1626.0,1625.7,6.15107]
[1744737367977,6.1508,1625.9,1625.3,3.0]
[1744737368175,6.1508,1625.9,1625.6,6.15144]
[1744737368376,6.15062,1625.9,1625.6,12.918014]
[1744737368609,6.15062,1625.9,1625.6,6.766574]
[1744737368995,12.30126,1625.9,1625.6,6.766574]
[1744737369514,6.15086,1625.8,1625.6,0.615144]
[1744737370187,0.8102,1625.5,1624.9,6.15404]
[1744737370431,6.15359,1625.1,1624.7,6.15488]
[1744737370643,6.15397,1625.0,1624.7,6.15488]
[1744737371108,12.30809,1625.0,1624.6,13.0657]
[1744737371311,6.15355,1625.1,1624.7,6.15497]
[1744737371475,6.15355,1625.1,1624.8,6.15455]
[1744737371679,0.8102,1625.2,1624.8,6.15455]
[1744737371915,12.30742,1625.1,1624.7,13.000827]
[1744737372079,12.30742,1625.1,1624.8,6.15459]
[1744737372279,4.6957662,1625.2,1624.7,0.691017]
[1744737372492,0.7656,1625.4,1624.9,3.8855662]
[1744737372689,0.7656,1625.8,1625.3,6.92851]
[1744737373006,6.91654,1625.8,1625.5,6.15181]
[1744737373806,13.06763,1625.8,1625.4,12.30448]
[1744737373995,6.91654,1625.8,1625.5,6.15189]
[1744737374214,0.7656,1625.8,1625.6,6.15156]
[1744737374521,6.9165,1625.8,1625.5,6.15184]
[1744737376483,0.7656,1625.8,1625.6,6.15139]
[1744737376683,0.7656,1625.8,1625.4,1.308028]
[1744737376684,0.7656,1625.8,1625.5,6.15189]
[1744737376885,6.9165,1625.8,1625.5,12.30365]
[1744737377424,0.7656,1625.8,1625.6,6.15153]
[1744737377732,12.28221,1626.0,1625.7,6.15116]
[1744737378105,0.7701,1625.5,1624.9,6.15403]
[1744737378304,6.15271,1625.3,1624.9,0.615403]
[1744737378625,5.362,1625.4,1624.8,6.1545]
[1744737378785,12.30745,1625.1,1624.7,6.97099]
[1744737378984,12.30745,1625.1,1624.7,6.15489]
[1744737378985,6.1539,1625.0,1624.7,6.15489]
[1744737380018,6.1539,1625.0,1624.6,12.31066]
[1744737380218,6.15446,1624.9,1624.6,1.312676]
[1744737380417,6.15446,1624.9,1624.7,0.34416987]
[1744737380634,13.07802,1625.0,1624.7,0.34416987]
[1744737380836,6.92401,1625.0,1624.7,0.34416987]
[1744737381044,6.15436,1624.9,1624.7,0.34416987]
[1744737381608,6.15436,1624.9,1624.6,1.312676]
[1744737381811,6.15436,1624.9,1624.6,7.467926]
[1744737382206,6.15436,1624.9,1624.6,7.467996]
[1744737382637,6.15521,1624.7,1624.4,6.156]
[1744737383012,6.15425,1624.9,1624.6,6.15498]
[1744737383620,11.75125,1624.9,1624.6,6.15498]
[1744737384034,6.1546,1624.8,1624.5,6.15571]
[1744737384239,6.1546,1624.8,1624.5,12.31142]
[1744737384439,5.597,1624.9,1624.7,6.1547]
[1744737384739,5.597,1624.9,1624.5,1.231142]
[1744737384740,5.597,1624.9,1624.6,6.15521]
[1744737384907,11.75125,1624.9,1624.6,6.15521]
[1744737385109,5.597,1624.9,1624.6,12.31041]
[1744737387743,6.15474,1624.8,1624.5,7.386782]
[1744737388039,12.30957,1624.8,1624.4,12.31208]
[1744737388540,6.93421,1624.7,1624.4,6.15611]
[1744737390146,0.779,1624.7,1624.4,6.15598]
[1744737390646,0.779,1624.7,1624.4,12.31196]
[1744737391545,13.08912,1624.7,1624.4,6.15598]
[1744737391748,6.93399,1624.7,1624.4,6.15598]
[1744737391949,6.93399,1624.7,1624.4,12.31197]
[1744737392151,6.93399,1624.7,1624.4,12.31198]
[1744737393346,6.93399,1624.7,1624.4,6.15598]
[1744737393515,6.93399,1624.7,1624.4,12.31198]
[1744737394651,0.779,1624.7,1624.5,6.15559]
[1744737395149,0.779,1624.7,1624.4,6.156]
[1744737395150,6.93408,1624.7,1624.4,6.156]
[1744737395450,0.779,1624.7,1624.5,6.15571]
[1744737397757,0.779,1624.7,1624.5,12.31142]
[1744737397916,0.779,1624.7,1624.5,6.15571]
[1744737398742,0.779,1624.7,1624.5,6.15564]
[1744737399957,0.779,1624.7,1624.5,12.31125]
[1744737400355,0.779,1624.7,1624.5,6.15561]
[1744737400856,0.779,1624.7,1624.3,6.15634]
[1744737401057,12.31111,1624.6,1624.3,6.15634]
[1744737401262,6.15591,1624.5,1624.2,6.15675]
[1744737401424,6.15591,1624.5,1624.1,6.94166]
[1744737401425,6.15631,1624.4,1624.1,6.94171]
[1744737401757,6.91871,1624.4,1624.1,6.15721]
[1744737402136,6.91865,1624.4,1624.1,6.15721]
[1744737402459,6.15731,1624.1,1623.8,6.15815]
[1744737402771,0.7805,1623.9,1623.7,6.15866]
[1744737402978,6.93871,1623.9,1623.6,6.15905]
[1744737403278,0.7805,1623.9,1623.7,6.15871]
[1744737403417,0.7805,1623.9,1623.7,12.31725]
[1744737403617,5.599,1624.1,1623.7,1.231725]
[1744737403871,11.75625,1624.1,1623.8,12.31661]
[1744737404472,6.15725,1624.1,1623.8,6.15828]
[1744737405054,12.3147,1624.1,1623.8,6.15828]
[1744737405358,12.3147,1624.1,1623.7,6.15859]
[1744737405526,6.15767,1624.0,1623.7,6.15859]
[1744737406149,6.15812,1623.9,1623.6,6.15912]
[1744737406349,6.1591,1623.7,1623.3,6.92877]
[1744737406558,12.31948,1623.5,1623.2,6.16053]
[1744737406876,12.31948,1623.5,1623.1,0.8186]
[1744737406877,6.16009,1623.4,1623.1,6.21099]
[1744737407453,6.15961,1623.5,1623.2,6.1605]
[1744737407660,6.95265,1623.6,1623.1,0.05]
[1744737407661,6.95265,1623.6,1623.3,6.16013]
[1744737407820,2.49246655,1623.6,1623.2,6.16057]
[1744737408027,6.15985,1623.5,1623.1,12.37185]
[1744737408368,0.821,1623.4,1622.4,0.31183612]
[1744737408546,0.821,1623.4,1622.2,9.02340761]
[1744737408547,0.821,1623.0,1622.7,6.16243]
[1744737408745,0.821,1623.0,1622.6,0.8333]
[1744737408950,0.821,1623.0,1622.7,12.32484]
[1744737409150,0.821,1623.0,1622.7,6.16242]
[1744737409553,6.98257,1623.0,1622.7,6.16253]
[1744737410362,8.240827,1623.0,1622.4,6.16364]
[1744737410563,0.8144,1622.6,1622.3,6.16397]
[1744737410766,6.16345,1622.5,1622.2,12.3288]
[1744737410931,6.16345,1622.5,1622.2,6.16435]
[1744737411130,6.97742,1622.6,1622.3,6.16393]
[1744737411131,0.8144,1622.6,1622.3,6.16393]
[1744737411351,8.232924,1622.6,1622.2,6.16435]
[1744737411757,12.3272,1622.5,1622.1,12.37945]
[1744737411951,6.16356,1622.5,1622.1,12.37945]
[1744737412569,6.16356,1622.5,1622.1,6.21469]
[1744737412570,6.16371,1622.4,1622.1,6.21469]
[1744737412870,6.16356,1622.5,1622.1,12.37939]
[1744737413066,6.16385,1622.4,1622.1,0.05]
[1744737413269,1.4396364,1622.5,1622.1,6.21455]
[1744737413270,7.6030364,1622.5,1622.1,6.21455]
[1744737413478,14.396044,1622.6,1622.2,6.16444]
[1744737413769,8.232774,1622.6,1622.2,12.32878]
[1744737413974,14.395914,1622.6,1622.2,12.32878]
[1744737414147,14.395914,1622.6,1622.2,6.16434]
[1744737414667,7.6030314,1622.5,1622.2,6.16428]
[1744737414868,1.4395914,1622.5,1622.2,12.32859]
[1744737415075,1.4395914,1622.5,1622.2,6.16428]
[1744737415869,7.6029914,1622.5,1622.2,6.16428]
[1744737416374,1.4395914,1622.5,1622.2,6.16428]
[1744737416668,1.4395914,1622.5,1622.3,6.16408]
[1744737416964,1.4395914,1622.5,1622.2,12.32874]
[1744737417167,1.4395914,1622.5,1622.2,12.32866]
[1744737417539,6.8509,1622.8,1622.5,6.16296]
[1744737417760,0.7509,1622.8,1622.6,6.16283]
[1744737418157,0.7509,1622.8,1622.5,6.16296]
[1744737418851,0.7509,1622.8,1622.5,12.32614]
[1744737419052,0.7509,1622.8,1622.6,6.16289]
[1744737420477,2.058385,1622.8,1622.5,12.32616]
[1744737420680,2.058385,1622.8,1622.6,6.16293]
[1744737421044,2.058385,1622.8,1622.4,6.16364]
[1744737421246,6.16267,1622.7,1622.4,6.16357]
[1744737421703,12.32541,1622.7,1622.4,6.16357]
[1744737421863,12.32642,1622.6,1622.3,6.16404]
[1744737422061,12.32642,1622.6,1622.3,12.32801]
[1744737422062,6.16321,1622.6,1622.3,12.32801]
[1744737422277,6.16321,1622.6,1622.3,6.16397]
[1744737422588,7.395791,1622.6,1622.3,6.11397]
[1744737422807,13.559001,1622.6,1622.3,6.11397]
[1744737422950,19.140001,1622.6,1622.2,12.32882]
[1744737423151,13.10759,1622.5,1622.2,6.16441]
[1744737423594,6.94402,1622.5,1622.2,6.16441]
[1744737423898,6.16426,1622.3,1622.1,0.05]
[1744737424096,12.52996,1622.2,1622.1,0.05]
[1744737424606,16.00027288,1622.2,1622.1,0.05]
[1744737425655,16.03307288,1622.2,1622.1,0.05]
[1744737425857,19.32874333,1622.2,1622.1,0.05]
[1744737427213,4.11297045,1622.2,1622.1,0.05]
[1744737427359,0.8131,1622.5,1622.4,6.16338]
[1744737427854,0.8131,1622.5,1622.4,0.11911927]
[1744737428049,5.583,1622.8,1622.6,6.16294]
[1744737428523,5.583,1622.8,1622.7,0.11917419]
[1744737428661,5.583,1622.8,1622.6,6.16294]
[1744737428857,0.7559,1623.0,1622.7,0.11573701]
[1744737429087,0.7559,1623.0,1622.7,6.27821701]
[1744737429274,0.7559,1623.0,1622.7,6.16248]
[1744737429475,0.7559,1623.0,1622.8,0.11528843]
[1744737429669,6.1618,1622.9,1622.8,0.11528843]
[1744737430074,14.945403,1623.0,1622.7,6.16254]
[1744737430280,6.16224,1622.8,1622.5,6.16322]
[1744737430562,12.32462,1622.8,1622.6,0.13784135]
[1744737430778,6.16256,1622.7,1622.6,0.13784135]
[1744737431107,7.39504,1622.7,1622.4,6.16353]
[1744737431260,6.16314,1622.6,1622.3,6.16399]
[1744737431660,6.16314,1622.6,1622.3,6.27917446]
[1744737432009,12.3263,1622.6,1622.3,0.11518446]
[1744737432161,13.1422,1622.6,1622.3,0.11518446]
[1744737432361,6.16347,1622.5,1622.3,0.11518446]
[1744737432588,13.64129,1622.5,1622.1,6.21472]
[1744737432863,13.64129,1622.5,1622.1,12.37944]
[1744737433462,6.16378,1622.4,1622.1,6.21472]
[1744737433661,6.16415,1622.3,1622.1,0.05]
[1744737434198,11.74715,1622.3,1622.1,0.05]
[1744737434813,5.583,1622.3,1622.1,6.2148]
[1744737434993,7.374094,1622.3,1622.1,0.05]
[1744737436227,1.31424,1622.5,1622.1,6.21466]
[1744737436520,0.8159,1622.6,1622.4,6.16368]
[1744737436882,6.16366,1622.5,1622.2,0.34417447]
[1744737437077,6.16394,1622.4,1622.1,6.2147]
[1744737437320,6.780254,1622.4,1622.1,6.2147]
[1744737437469,12.944174,1622.4,1622.1,6.2147]
[1744737437814,6.780254,1622.4,1622.1,12.37944]
[1744737438114,0.616394,1622.4,1622.2,6.16437]
[1744737438276,0.616394,1622.4,1622.2,12.32874]
[1744737438484,6.16341,1622.5,1622.2,12.32874]
[1744737438884,13.14205,1622.6,1622.2,12.32874]
[1744737439314,6.16333,1622.5,1622.2,6.16437]
[1744737439503,6.16333,1622.5,1622.2,6.16434]
[1744737439668,6.16382,1622.4,1622.1,6.21475]
[1744737439868,6.861312,1622.5,1622.2,6.16438]
[1744737440069,6.861312,1622.5,1622.2,6.16435]
[1744737441105,6.861312,1622.5,1622.2,12.32871]
[1744737441302,6.861312,1622.5,1622.2,6.16435]
[1744737442296,7.8474,1622.2,1622.1,1e-05]
[1744737442605,6.16652,1621.7,1621.3,6.16775]
[1744737442776,6.226652,1621.7,1621.4,6.16725]
[1744737442977,5.61,1621.7,1621.6,6.16674]
[1744737443288,6.16564,1621.9,1621.6,6.16674]
[1744737443682,12.33145,1621.9,1621.5,12.33394]
[1744737443911,6.16564,1621.9,1621.5,12.33393]
[1744737444487,12.33143,1621.9,1621.5,12.33393]
[1744737444805,14.207613,1621.9,1621.5,12.33393]
[1744737445107,14.207663,1621.9,1621.5,12.33393]
[1744737445314,8.041823,1621.9,1621.6,6.16665]
[1744737445482,61.9470612,1622.4,1621.6,6.16665]
[1744737445483,0.7722,1622.4,1621.8,0.55]
[1744737445676,0.7722,1622.6,1622.3,6.16393]
[1744737445908,5.61,1622.8,1622.4,6.16366]
[1744737446108,0.561,1622.7,1622.1,6.94841]
[1744737446307,5.61,1622.8,1622.6,6.16283]
[1744737446510,5.61,1622.8,1622.5,6.97726]
[1744737446676,5.61,1622.8,1622.5,13.14047]
[1744737446877,0.7807,1623.0,1622.6,6.16274]
[1744737447096,0.7807,1623.0,1622.6,12.32575]
[1744737447683,0.7807,1623.0,1622.6,6.16281]
[1744737447889,0.7807,1623.0,1622.6,12.32559]
[1744737448085,0.7807,1623.0,1622.6,6.16278]
[1744737448293,6.16194,1622.9,1622.5,6.16331]
[1744737448494,0.616194,1622.8,1622.5,6.16331]
[1744737449017,0.616194,1622.8,1622.6,6.16263]
[1744737449192,3.7807,1623.0,1622.6,6.16263]
[1744737449394,3.7807,1623.0,1622.5,6.16319]
[1744737449618,6.16198,1622.9,1622.5,6.16319]
[1744737449812,6.16198,1622.9,1622.5,12.32634]
[1744737449994,6.16198,1622.9,1622.5,6.16315]
[1744737450192,6.16198,1622.9,1622.5,12.3263]
[1744737450515,9.94219,1623.0,1622.3,0.8246]
[1744737450516,0.616198,1622.8,1622.7,6.16256]
[1744737450813,9.94216,1623.0,1622.6,12.32574]
[1744737450997,6.16196,1622.9,1622.5,6.16329]
[1744737451391,16.10377,1623.0,1622.6,6.1629]
[1744737451710,6.16186,1622.9,1622.5,12.32634]
[1744737452193,9.92964,1622.8,1622.4,12.32717]
[1744737452397,5.61,1622.7,1622.4,6.1637]
[1744737453283,11.77274,1622.7,1622.3,12.32812]
[1744737453524,11.77274,1622.7,1622.1,6.9564]
[1744737453525,6.95807,1622.6,1622.2,12.32861]
[1744737454239,6.1634,1622.5,1622.1,6.95632]
[1744737454425,12.32693,1622.5,1622.1,6.16472]
[1744737454739,7.396403,1622.4,1622.1,12.32942]
[1744737454936,7.396403,1622.4,1621.9,6.16556]
[1744737454937,6.3935,1622.3,1621.9,6.16556]
[1744737455091,6.3935,1622.3,1621.9,12.33106]
[1744737455296,0.63935,1622.2,1621.9,12.33106]
[1744737455767,3.63935,1622.2,1621.7,0.7801]
[1744737456069,0.63935,1622.2,1622.0,6.16504]
[1744737456232,0.63935,1622.2,1621.9,6.16551]
[1744737456433,6.16496,1622.1,1621.8,6.16597]
[1744737456633,0.616496,1622.0,1621.8,6.16597]
[1744737457433,0.616496,1622.0,1621.8,12.33183]
[1744737457651,6.80391,1622.2,1621.9,6.16549]
[1744737457850,0.63935,1622.2,1622.0,6.1652]
[1744737458031,6.3935,1622.3,1622.1,6.16484]
[1744737458823,6.3935,1622.3,1622.1,12.32968]
[1744737459136,5.61,1622.9,1622.7,6.16254]
[1744737459340,11.48775033,1623.5,1622.9,6.1618]
[1744737459341,5.61,1623.2,1622.9,6.1618]
[1744737459577,5.61,1623.2,1621.9,6.16523]
[1744737459578,9.87213208,1623.0,1621.9,6.16523]
[1744737459720,4.5951016,1622.8,1622.4,6.16357]
[1744737459921,4.5951016,1622.8,1621.7,0.8212]
[1744737459922,5.61,1622.7,1622.3,6.16403]
[1744737460650,11.77262,1622.7,1622.3,12.32794]
[1744737460824,11.77262,1622.7,1622.3,12.32788]
[1744737461026,1.177262,1622.6,1622.3,6.16391]
[1744737461249,0.7638,1622.9,1622.1,0.8212]
[1744737461463,5.61,1622.8,1622.5,6.16329]
[1744737461633,5.61,1622.8,1622.5,6.1632]
[1744737462343,13.60434319,1622.8,1622.3,6.164]
[1744737462557,1.36043432,1622.7,1622.4,12.32709]
[1744737462759,9.16268,1622.7,1622.3,6.16401]
[1744737462946,6.3768,1622.6,1622.2,12.32882]
[1744737463123,6.3768,1622.6,1622.5,6.16332]
[1744737463328,6.3768,1622.6,1622.1,6.98603]
[1744737463523,6.3768,1622.6,1622.3,6.16374]
[1744737463764,7.01448,1622.6,1622.4,12.32713]
[1744737463970,7.01448,1622.6,1622.4,12.32712]
[1744737464766,7.01448,1622.6,1622.4,6.16354]
[1744737465580,5.61,1622.6,1622.5,6.16332]
[1744737469479,5.61,1622.9,1622.8,6.16218]
[1744737470370,11.77193,1622.9,1622.5,6.1632]
[1744737470535,5.61,1622.9,1622.6,12.32567]
[1744737470746,0.561,1622.8,1622.7,6.16256]
[1744737470950,0.561,1622.8,1622.6,6.16282]
[1744737471486,0.561,1622.8,1622.5,6.16322]
[1744737471661,0.561,1622.8,1622.5,6.16319]
[1744737471848,6.72324,1622.8,1622.5,6.16319]
[1744737472051,0.7566,1622.6,1622.3,6.16399]
[1744737472379,0.7566,1622.6,1622.3,12.32798]
[1744737473271,5.761,1622.5,1622.1,6.16466]
[1744737473470,6.16458,1622.2,1621.9,6.16549]
[1744737473677,6.781438,1622.1,1621.8,6.16593]
[1744737474188,6.377458,1622.1,1621.5,6.9978]
[1744737474384,6.377458,1622.1,1621.9,6.16546]
[1744737474890,6.377458,1622.1,1621.9,12.33093]
[1744737475182,6.377458,1622.1,1621.9,6.16546]
[1744737475592,6.377458,1622.1,1621.8,12.33188]
[1744737476478,12.542368,1622.1,1621.8,6.16594]
[1744737477089,6.377458,1622.1,1621.8,12.33182]
[1744737477593,6.377458,1622.1,1621.9,6.16559]
[1744737478297,6.377458,1622.1,1621.8,6.16588]
[1744737478298,6.377458,1622.1,1621.8,12.33176]
[1744737478453,7.5603358,1622.0,1621.3,0.8138]
[1744737478750,7.5603358,1622.0,1621.4,6.16724]
[1744737478751,6.16616,1621.8,1621.4,6.16724]
[1744737478956,5.762,1621.7,1621.4,12.33462]
[1744737479688,5.762,1621.7,1621.6,6.16674]
[1744737479852,6.3382,1621.7,1621.5,6.16708]
[1744737480685,12.50457,1621.7,1621.4,6.16746]
[1744737480875,6.91813,1621.6,1621.2,12.7411294]
[1744737481074,6.91813,1621.6,1621.2,6.5729794]
[1744737481075,6.16723,1621.5,1621.2,6.5729794]
[1744737481287,6.859043,1621.5,1621.2,6.5729794]
[1744737481464,0.7511,1621.6,1621.5,6.16712]
[1744737481660,11.863,1621.9,1621.8,6.16598]
[1744737481857,5.763,1621.9,1621.6,6.91862]
[1744737482059,6.16604,1621.8,1621.4,12.33469]
[1744737482272,13.525134,1621.8,1621.5,6.16705]
[1744737482594,6.16708,1621.6,1621.3,6.16775]
[1744737482886,6.16712,1621.5,1621.2,6.5731394]
[1744737483183,11.92983,1621.6,1621.2,6.5731394]
[1744737483391,7.360133,1621.5,1621.3,0.13806625]
[1744737483762,1.192983,1621.5,1621.3,6.30592625]
[1744737483985,7.360133,1621.5,1621.3,0.13806625]
[1744737485190,6.9407,1621.4,1621.3,0.13806625]
[1744737485560,6.16788,1621.3,1621.2,0.4048994]
[1744737485761,1.310858,1621.3,1621.2,0.4048994]
[1744737485959,1.192983,1621.5,1621.3,6.16788]
[1744737486183,1.192983,1621.5,1621.2,6.5730394]
[1744737486388,7.360173,1621.5,1621.2,6.5730394]
[1744737486692,1.192983,1621.5,1621.2,0.4048994]
[1744737486878,6.5916,1621.6,1621.3,12.33551]
[1744737487081,6.5916,1621.6,1621.3,6.16771]
[1744737487277,18.92531,1621.6,1621.3,6.16771]
[1744737487479,6.16727,1621.5,1621.2,6.5731294]
[1744737487682,0.616727,1621.4,1621.2,0.4048994]
[1744737487993,0.616727,1621.4,1621.2,12.7412794]
[1744737488289,0.616727,1621.4,1621.2,6.5730194]
[1744737489092,0.616727,1621.4,1621.2,0.4048994]
[1744737489093,6.784347,1621.4,1621.2,0.4048994]
[1744737489590,0.616727,1621.4,1621.2,0.4048994]
[1744737489764,0.616727,1621.4,1621.2,6.5730394]
[1744737490160,12.75836,1621.6,1621.3,6.16777]
[1744737490355,18.92525,1621.6,1621.3,6.16777]
[1744737490559,18.92525,1621.6,1621.2,12.7412194]
[1744737490771,6.16715,1621.5,1621.2,12.7412194]
[1744737490996,6.16715,1621.5,1621.2,6.5730594]
[1744737491294,8.059701,1621.5,1621.2,12.7411894]
[1744737491592,1.892551,1621.5,1621.3,6.16783]
[1744737491912,6.5916,1621.6,1621.4,6.16724]
[1744737492060,12.75854,1621.6,1621.3,6.16777]
[1744737492503,12.75854,1621.6,1621.3,12.33555]
[1744737492862,12.75854,1621.6,1621.4,6.1675]
[1744737492863,6.5916,1621.6,1621.4,6.1675]
[1744737493058,6.5916,1621.6,1621.3,12.33555]
[1744737493059,8.4774,1621.6,1621.3,12.33555]
[1744737494316,14.64417,1621.6,1621.3,12.33555]
[1744737494526,14.64417,1621.6,1621.3,6.16777]
[1744737494814,8.4774,1621.6,1621.4,6.16744]
[1744737495008,5.763,1621.6,1621.4,6.16739]
[1744737495183,5.763,1621.6,1621.5,6.16712]
[1744737495578,5.763,1621.6,1621.4,6.16735]
[1744737496614,5.763,1621.6,1621.2,0.4048994]
[1744737496615,6.16757,1621.4,1621.2,0.4048994]
[1744737496814,6.96235,1621.5,1621.2,0.4048994]
[1744737496984,8.234885,1621.5,1621.2,6.5728294]
[1744737497815,2.067735,1621.5,1621.3,6.16788]
[1744737497986,2.067735,1621.5,1621.2,12.7409894]
[1744737498187,5.763,1621.6,1621.5,6.16712]
[1744737498594,5.763,1621.6,1621.2,0.4048994]
[1744737498813,0.832,1621.5,1621.2,0.4048994]
[1744737499018,0.832,1621.5,1621.3,6.16766]
[1744737499216,5.763,1621.6,1621.2,0.4048994]
[1744737499420,5.763,1621.6,1621.4,6.16735]
[1744737499627,6.956904,1621.8,1621.4,0.8274]
[1744737499921,6.92806,1622.1,1621.8,6.16598]
[1744737500096,5.79,1622.0,1621.9,6.1656]
[1744737500297,12.61076,1622.0,1621.7,6.99374]
[1744737500607,6.44531,1622.0,1621.7,6.99366]
[1744737500922,12.61055,1622.0,1621.7,6.99365]
[1744737501317,6.44531,1622.0,1621.7,0.8274]
[1744737501520,6.44531,1622.0,1621.8,6.16581]
[1744737502041,0.644531,1621.9,1621.6,12.33325]
[1744737502323,5.79,1622.0,1621.5,0.7906]
[1744737502519,5.79,1622.0,1621.6,6.16674]
[1744737502703,6.1659,1621.9,1621.5,13.12454]
[1744737502902,12.33188,1621.9,1621.5,13.12454]
[1744737503102,14.144068,1621.9,1621.5,13.12454]
[1744737503491,0.766,1621.8,1621.2,0.4048994]
[1744737503691,6.16708,1621.6,1621.2,6.5730294]
[1744737504005,6.16723,1621.5,1621.2,12.7411594]
[1744737504204,11.95608,1621.6,1621.3,6.16788]
[1744737504402,19.935302,1621.6,1621.2,12.7412594]
[1744737504803,13.768222,1621.6,1621.3,6.16787]
[1744737505011,6.16723,1621.5,1621.2,12.7411894]
[1744737505212,13.768142,1621.6,1621.3,6.16785]
[1744737505733,13.768142,1621.6,1621.2,6.5730394]
[1744737505933,6.16716,1621.5,1621.2,6.5730394]
[1744737506436,6.16764,1621.4,1621.2,0.4048994]
[1744737506799,8.9301902,1621.5,1621.2,6.5728594]
[1744737507001,8.9301902,1621.5,1621.3,6.16788]
[1744737507002,2.7630302,1621.5,1621.3,6.16788]
[1744737508033,8.9301702,1621.5,1621.2,12.7410194]
[1744737508813,15.0974902,1621.5,1621.2,6.5728594]
[1744737509002,8.9301702,1621.5,1621.2,6.5728594]
[1744737509202,2.7630302,1621.5,1621.3,6.16778]
[1744737509856,8.9302902,1621.5,1621.2,6.5728594]
[1744737510144,0.89302902,1621.4,1621.2,0.4048994]
[1744737510317,13.10402,1621.5,1621.2,6.5730494]
[1744737511235,6.16761,1621.4,1621.2,0.4048994]
[1744737511453,6.93674,1621.5,1621.2,0.4048994]
[1744737511622,6.93674,1621.5,1621.2,6.5729894]
[1744737511822,6.93674,1621.5,1621.2,12.7412294]
[1744737512097,0.7695,1621.5,1621.4,6.1675]
[1744737512212,5.789,1621.6,1621.3,6.16771]
[1744737512613,11.95577,1621.6,1621.3,12.33549]
[1744737512959,5.789,1621.6,1621.4,6.16731]
[1744737513313,5.789,1621.6,1621.3,6.16776]
[1744737513515,5.789,1621.6,1621.4,6.16746]
[1744737513714,5.789,1621.6,1621.4,12.33484]
[1744737513919,5.789,1621.6,1621.4,6.16738]
[1744737514651,13.844038,1621.6,1621.2,1.1973994]
[1744737514854,13.844038,1621.6,1621.3,6.16771]
[1744737515213,13.844038,1621.6,1621.3,12.33558]
[1744737515410,5.789,1621.6,1621.5,6.16712]
[1744737515725,6.16602,1621.8,1621.5,12.33424]
[1744737515925,6.16602,1621.8,1621.5,12.33415]
[1744737516306,12.3109796,1621.8,1621.5,12.33415]
[1744737516965,60.82428,1621.9,1621.6,6.95317]
[1744737516966,53.886,1621.9,1621.6,6.95317]
[1744737517183,5.79,1621.9,1621.6,13.1198]
[1744737517383,6.553,1622.3,1621.7,6.2278421]
[1744737517679,6.553,1622.3,1622.0,6.16522]
[1744737517680,12.7171,1622.3,1622.0,6.16522]
[1744737517884,6.553,1622.3,1622.0,6.16511]
[1744737518032,5.79,1622.3,1622.2,6.16446]
[1744737518733,5.79,1622.3,1622.0,6.16489]
[1744737518939,5.79,1622.3,1622.1,6.16484]
[1744737519878,6.96877,1622.2,1621.9,6.16551]
[1744737520076,0.8042,1622.2,1621.9,6.16548]
[1744737520634,0.8042,1622.2,1621.9,12.33096]
[1744737520896,5.79,1622.3,1621.9,7.481116]
[1744737521041,18.11584,1622.5,1622.2,6.16446]
[1744737521242,11.95235,1622.5,1622.2,12.32892]
[1744737521472,11.95235,1622.5,1622.2,6.16446]
[1744737522035,18.11583,1622.5,1622.2,6.16446]
[1744737522236,24.2607896,1622.5,1622.2,6.16446]
[1744737522632,6.16427,1622.3,1622.0,6.16512]
[1744737523135,6.98085,1622.4,1622.0,0.8306]
[1744737523331,11.95243,1622.5,1622.2,6.16434]
[1744737523552,11.95243,1622.5,1622.2,12.3287]
[1744737523780,5.789,1622.5,1622.3,6.16405]
[1744737524083,5.789,1622.5,1622.2,6.16435]
[1744737524385,18.039411,1622.5,1622.1,6.16472]
[1744737524683,6.16375,1622.4,1622.1,6.16472]
[1744737524892,6.16375,1622.4,1622.0,6.99576]
[1744737525092,6.16375,1622.4,1622.1,6.1648]
[1744737526094,6.9866,1622.3,1622.0,6.1651]
[1744737526387,6.9866,1622.3,1622.0,12.33022]
[1744737526569,8.67970692,1622.4,1622.1,6.16476]
[1744737526966,6.5645,1622.5,1622.1,0.8252]
[1744737527152,5.789,1622.5,1622.3,6.16405]
[1744737527350,5.789,1622.5,1622.4,6.1637]
[1744737530091,5.789,1622.5,1622.3,6.1639]
[1744737530289,5.789,1622.5,1622.3,12.32783]
[1744737531259,5.789,1622.5,1622.3,6.1639]
[1744737531772,17.957668,1622.5,1622.1,6.98992]
[1744737531959,17.957668,1622.5,1622.1,6.9899]
[1744737532394,17.957668,1622.5,1622.2,6.16435]
[1744737532980,17.957668,1622.5,1622.2,12.32871]
[1744737533181,17.957668,1622.5,1622.2,6.16435]
[1744737533496,17.957668,1622.5,1622.2,12.32869]
[1744737533699,5.789,1622.5,1622.3,6.16408]
[1744737534200,5.789,1622.5,1622.3,6.16391]
[1744737534691,11.95234,1622.5,1622.2,6.16436]
[1744737535073,11.95234,1622.5,1622.2,6.16434]
[1744737535597,11.95234,1622.5,1622.2,12.3287]
[1744737535793,5.789,1622.5,1622.3,6.16393]